[Event "Match Kovalenko-Kravtsiv Blitz 2025"]
[Site "Lviv"]
[Date "2025.03.20"]
[Round "1.1"]
[White "Kovalenko, Igor"]
[Black "Kravtsiv, Martyn"]
[Result "0-1"]
[Annotator "TA"]
[ECO "D35"]
[WhiteElo "2674"]
[BlackElo "2598"]
[PlyCount "125"]
[EventDate "2025.03.17"]
[EventType "match"]
[EventCountry "UKR"]
[SourceTitle "playchess.com"]
[Source "ChessBase"]
[SourceQuality "1"]
[TimeControl "180+2"]

{[%evp 13,125,0,0,0,0,-43,0,-68,-70,-106,-106,-109,-71,-104,0,0,0,0,0,-64,-33,-47,0,-102,-105,-100,-104,-93,-92,-97,-97,-101,-100,-159,-155,-147,-152,-177,-172,-170,59,-120,-102,-120,-102,-120,-117,-117,-91,-95,-98,-99,-97,-122,-117,-128,-128,-128,-114,-113,-114,-221,-221,-221,-221,-221,-221,-221,-221,-221,0,-207,-206,-206,-206,-206,-206,-206,-206,-206,-206,-206,-206,-206,0,-206,-206,-237,-206,-206,-206,-206,-206,-206,-206,-206,-206,-206,-206,-206,-206,-522,-206,-206,-206,-270,-206,-206,-206,-194,-194,-273,-194,-195]} 1. d4 d5 2. c4 e6 3. Nc3 Nf6 4. cxd5 exd5 5. Bg5 Be7 6. e3 h6 7. Bxf6 Bxf6 8. Rc1 {D53: Queen's Gambit Declined: 4 Bg5 Be7: Early deviations.} O-O {[%cal Oc7c5]} 9. b4 $146 (9. Bd3 c5 10. Nge2 cxd4 11. exd4 Nc6 12. Bb1 Re8 13. O-O Bg4 14. f3 Be6 15. Qd3 {0-1 Bennett,D (1873)-Isigkeit,H (1945) IECC M email 1998}) 9... c6 10. Bd3 (10. b5 $11) 10... Qe7 $15 {[%csl LRb4,LRd4]} 11. Nge2 Qxb4 12. O-O Re8 13. Nf4 {[%cal Of4d5]} Nd7 (13... Qd6 $17 14. g3 Bg5) 14. Ncxd5 $11 cxd5 15. Nxd5 Qf8 16. Nc7 {[#]} (16. Qf3 $11) 16... Nb6 $1 {[%cal Oc8e6]} 17. Qf3 {[%cal Oa2a4] [#]} (17. a4 Be6) 17... Be6 18. Nxe6 (18. Qe4 $11 {remains equal.} g6 19. Nxa8 Rxa8 20. Qxb7) 18... Rxe6 $17 19. Qxb7 g6 20. Rc7 Bd8 21. Rc2 Qa3 22. Be2 Re7 23. Qf3 (23. Qa6 $142 Qxa6 24. Bxa6) 23... Rc8 24. Rxc8 Nxc8 25. Bc4 Nd6 26. Bb3 Nf5 $2 (26... Kg7 $19 {...Ne4 is the strong threat.} 27. Qd5 Bb6) 27. Qa8 $2 (27. e4 $14 Qa5 28. exf5 Qxf5 29. Qxf5 gxf5 30. d5) 27... Qd6 28. g3 Kg7 29. Kg2 Bb6 30. Rc1 Rc7 31. Rxc7 Qxc7 {Successful Defense Black} 32. Qd5 Qe7 33. h4 h5 34. Qf3 Nd6 35. Bd5 Qf6 36. Qd1 Qf5 37. Qb3 {[#]} (37. Bb3 $17 {is a better defense.}) 37... Ne4 $1 $19 38. Bxe4 Qxe4+ 39. Kg1 Qc6 40. a4 Bc7 41. Qd1 Bb6 42. Qb3 Qd6 43. Qb5 a5 44. Kg2 Bd8 45. Kg1 Qb4 46. Qd7 Bf6 47. Kg2 Qd2 48. Qe8 Qb4 49. Qd7 $1 Be7 50. Qe8 Bd6 51. Qd7 Bf8 52. Qe8 Qd6 53. Qa8 Qb6 54. Qd5 Bb4 55. Qe5+ Qf6 56. Qb5 Qe6 57. Qb7 $2 (57. Kg1 {is more resistant.}) 57... Be1 $2 (57... Qe8 58. g4 hxg4) 58. Kf1 Bc3 59. Kg2 Qa2 60. Qb5 Be1 61. Qe5+ Kh7 62. Qf6 (62. Qf4 $142) 62... Kg8 ({Worse is} 62... Qxa4 63. Qxf7+ Kh6 64. Qf8+ Kh7 65. Qf7+ Kh6 66. Qf8+ Kh7 67. Qf7+ $11) 63. Kf1 {Weighted Error Value: White=0.26 (precise) /Black=0.31  Missed win:     	---       	Black=1      Mistake:       	White=8     	Black=3      Inaccurate:     	White=4     	Black=3      OK:         	White=14    	Black=24     Best:        	White=2     	Black=2      Strong:       	White=1     	Black=1} 0-1

[Event "Match Kovalenko-Kravtsiv Blitz 2025"]
[Site "Lviv"]
[Date "2025.03.20"]
[Round "2.1"]
[White "Kravtsiv, Martyn"]
[Black "Kovalenko, Igor"]
[Result "1-0"]
[Annotator "TA"]
[ECO "B01"]
[WhiteElo "2598"]
[BlackElo "2674"]
[PlyCount "71"]
[EventDate "2025.03.17"]
[EventType "match"]
[EventCountry "UKR"]
[SourceTitle "playchess.com"]
[Source "ChessBase"]
[SourceQuality "1"]
[TimeControl "180+2"]

{[%evp 23,71,8,22,0,0,0,0,0,0,-18,0,-10,58,51,50,50,115,115,351,337,394,372,360,241,442,426,404,382,379,335,412,387,979,355,378,247,226,239,527,224,225,228,417,359,454,194,186,186,1273,1251]} 1. e4 {[%emt 0:00:01]} d5 {[%emt 0:00:01]} 2. exd5 {[%emt 0:00:02]} Qxd5 {[%emt 0:00:01]} 3. Nc3 {[%emt 0:00:01]} Qa5 {[%emt 0:00:01]} 4. d4 {[%emt 0:00:04]} Nf6 {[%emt 0:00:01]} 5. Bc4 {[%emt 0:00:02]} c6 {[%emt 0:00:01]} 6. Nf3 {[%emt 0:00:03]} Bf5 {[%emt 0:00:01]} 7. Bd2 {[%emt 0:00:08]} Nbd7 {[%emt 0:00:01]} 8. Bb3 {[%emt 0:00:18]} e6 {[%emt 0:00:10]} 9. Qe2 {[%emt 0:00:01]} Bb4 {[%emt 0:00:02]} 10. a3 {[%emt 0:00:07]} O-O {[%emt 0:00:33]} 11. O-O {[%emt 0:00:16]} Bxc3 {[%emt 0:00:03]} 12. Bxc3 {[%emt 0:00:01]} Qc7 {[%emt 0:00:01]} 13. Nh4 $5 {[%emt 0:00:19][%mdl 4] Leaves trodden paths. B01: Scandinavian Defence.} Be4 $146 {[%emt 0:00:03]} (13... Bg4 14. f3 Bh5 15. Bd2 Rfd8 16. g4 Bg6 17. Nxg6 hxg6 18. Bg5 c5 19. Rad1 cxd4 20. Rxd4 Nc5 21. Rc4 b5 22. Rc3 Nd5 23. Bxd5 Rxd5 24. Be3 Qe7 {1-0 Ngo,N (2325)-Phan,D VIE-ch U20 Hue 2003 (2)}) 14. Bb4 {[%emt 0:00:12]} c5 {[%emt 0:00:10]} 15. dxc5 {[%emt 0:00:04] The position is equal.} Nxc5 {[%emt 0:00:01]} 16. Rad1 {[%emt 0:00:14]} a5 {[%emt 0:00:18]} 17. Bc3 {[%emt 0:00:23]} Qf4 {[%emt 0:00:43]} ({Better is} 17... Nxb3 $11 18. cxb3 Bd5) 18. g3 $14 {[%emt 0:00:07]} Qg5 {[%emt 0:00:03]} 19. Bc4 {[%emt 0:00:24]} Qh5 {[%emt 0:00:40] [#]} (19... Rfc8 $14) 20. Qe3 $1 $16 {[%emt 0:00:22]} Rfc8 $2 {[%emt 0:00:39] [#] This move loses the game for Black.} (20... Ng4 $16 21. Qe1 Bxc2) 21. Be2 $1 $18 {[%emt 0:00:05] A strong pair of Bishops.} Ng4 {[%emt 0:00:04]} 22. Qf4 {[%emt 0:00:12]} f5 {[%emt 0:00:04]} 23. f3 $40 {[%emt 0:00:12][%mdl 128] White goes for the king.} Nxh2 {[%emt 0:00:04]} (23... Nf6 {was called for.} 24. Bxf6 (24. fxe4 Qxe2 25. exf5 e5 $18) 24... gxf6) 24. Kxh2 {[%emt 0:00:04]} Bxc2 {[%emt 0:00:00]} 25. Rd2 {[%emt 0:00:01]} Bb3 {[%emt 0:00:01]} 26. Qe5 {[%emt 0:00:02][%csl Gc3][%cal Re5g7]} Qf7 {[%emt 0:00:01]} 27. Bb5 {[%emt 0:00:03]} Bd5 $2 {[%emt 0:00:03]} (27... Qf6 28. Qxf6 gxf6 29. Bxf6 Kf7) 28. Ng2 $2 {[%emt 0:00:04]} (28. Rxd5 exd5 29. Nxf5) 28... Nb3 {[%emt 0:00:02]} 29. Re2 {[%emt 0:00:02]} Rc5 {[%emt 0:00:01]} 30. a4 {[%emt 0:00:02]} Bc4 $2 {[%emt 0:00:01]} (30... Bxf3 31. Qxe6 Bxe2 32. Qxe2 Rd8) 31. Qe3 {[%emt 0:00:02]} (31. Bxc4 $142 Rxc4 32. Qb5 (32. Qxe6 Rd8 $18)) 31... Bxe2 {[%emt 0:00:01]} 32. Qxe2 {[%emt 0:00:01]} Rd8 {[%emt 0:00:03]} (32... e5 33. Bxe5 Qd5) 33. Rd1 {[%emt 0:00:01]} ({Don't take} 33. Bc4 Rxc4 34. Qxc4 e5 $18) 33... Rcd5 {[%emt 0:00:02]} 34. Rxd5 {[%emt 0:00:02]} (34. Bc4 $142 Nc5 (34... Rxd1 $2 {loses.} 35. Bxe6 R1d7 36. Qc4 $18) 35. Bxd5 exd5 36. Qb5 (36. Bxa5 Rc8 $18)) 34... exd5 {[%emt 0:00:01]} 35. Nf4 {[%emt 0:00:01] and Ne6 would now be decisive} d4 $2 {[%emt 0:00:00]} (35... Rc8 36. Kg2 d4) 36. Bc4 {[%emt 0:00:01] Weighted Error Value: White=0.61/Black=0.93  Loses game:     	---       	Black=1      Mistake:       	White=3     	Black=7      Inaccurate:     	White=1     	---        OK:         	White=7     	Black=6      Best:        	White=2     	Black=1      Strong:       	White=2     	---} 1-0

[Event "Match Kovalenko-Kravtsiv Blitz 2025"]
[Site "Lviv"]
[Date "2025.03.20"]
[Round "3.1"]
[White "Kovalenko, Igor"]
[Black "Kravtsiv, Martyn"]
[Result "1-0"]
[Annotator "TA"]
[ECO "C77"]
[WhiteElo "2674"]
[BlackElo "2598"]
[PlyCount "101"]
[EventDate "2025.03.17"]
[EventType "match"]
[EventCountry "UKR"]
[SourceTitle "playchess.com"]
[Source "ChessBase"]
[SourceQuality "1"]
[TimeControl "180+2"]

{[%evp 13,101,15,19,10,14,9,7,13,31,-18,-12,-35,-29,-34,-35,-56,-50,-77,-65,-72,-64,-81,-51,-76,-68,-73,-56,-67,-83,-79,-77,-158,-159,-257,-270,-261,-266,-238,-247,-250,-226,-393,-412,-408,-401,-385,-393,-381,-333,-409,-416,-401,-298,-295,-295,-303,-209,-251,-222,-240,-188,-196,-191,-180,387,387,390,390,393,385,385,385,393,385,385,385,535,504,490,397,741,448,817,591,970,963,2431,2301,1718,994]} 1. e4 {[%emt 0:00:01]} e5 {[%emt 0:00:01]} 2. Nf3 {[%emt 0:00:01]} Nc6 {[%emt 0:00:01]} 3. Bb5 {[%emt 0:00:02]} a6 {[%emt 0:00:01]} 4. Ba4 {[%emt 0:00:01]} Nf6 {[%emt 0:00:01]} 5. d3 {[%emt 0:00:01]} b5 {[%emt 0:00:03]} 6. Bb3 {[%emt 0:00:01]} Be7 {[%emt 0:00:01]} 7. Nbd2 {[%emt 0:00:03]} O-O {[%emt 0:00:06]} 8. O-O {[%emt 0:00:02] C77: Ruy Lopez: 3...a6 4 Ba4 Nf6, unusual lines.} d6 {[%emt 0:00:14]} 9. a3 {[%emt 0:00:03]} Na5 {[%emt 0:00:13]} 10. Ba2 {[%emt 0:00:01] The position is equal.} Be6 $5 $146 {[%emt 0:00:05][%mdl 8] New and interesting.} (10... c5 11. Re1 Nc6 12. c3 Re8 13. Nf1 h6 14. Ne3 Bf8 15. b4 Be6 16. Nd5 Rc8 {1-0 Carlsen,M (2837)-Ding,L (2774) Saint Louis Carlsen-Ding Showdown G10 blitz 2017 (7)}) 11. Bb1 {[%emt 0:00:37]} (11. Bxe6 $14 {feels stronger.} fxe6 12. b4) 11... c5 $11 {[%emt 0:00:08]} 12. b4 {[%emt 0:00:04]} Nc6 {[%emt 0:00:13]} 13. bxc5 {[%emt 0:00:06]} dxc5 {[%emt 0:00:02]} 14. Bb2 {[%emt 0:00:01]} Qc7 {[%emt 0:00:25]} 15. h3 {[%emt 0:00:33]} Nd7 {[%emt 0:00:21]} 16. c3 {[%emt 0:00:08]} Nb6 {[%emt 0:00:28]} 17. Bc2 {[%emt 0:00:02] Wards off Na4} Rab8 {[%emt 0:00:01]} 18. Re1 {[%emt 0:00:38]} Rfd8 {[%emt 0:00:09][%cal Ob6a4]} 19. Qe2 {[%emt 0:00:19]} Na4 {[%emt 0:00:03]} 20. Bxa4 {[%emt 0:00:28]} bxa4 {[%emt 0:00:01]} 21. Nf1 {[%emt 0:00:02]} Qb7 {[%emt 0:00:35]} 22. Bc1 {[%emt 0:00:15] [#]} (22. Reb1 $142) 22... Qb3 $1 $36 {[%emt 0:00:13][%mdl 2048] Black is really pushing.} 23. Bd2 {[%emt 0:00:09]} (23. Ng5 $17) 23... c4 $19 {[%emt 0:00:02]} 24. dxc4 Bxc4 {[%emt 0:00:15]} 25. Qd1 {[%emt 0:00:10]} Qxd1 {[%emt 0:00:04]} 26. Rexd1 {[%emt 0:00:00]} Rb3 {[%emt 0:00:02][%cal Of7f6]} 27. Ne3 $2 {[%emt 0:00:04]} (27. Re1 {keeps fighting.}) 27... Be2 {[%emt 0:00:02] This pair of bishops is nice.} 28. Nd5 {[%emt 0:00:01][%cal Of3e5]} Bxd1 {[%emt 0:00:02]} (28... Bxa3 29. Re1 Bxf3 30. gxf3 $17) 29. Rxd1 {[%emt 0:00:01]} Bxa3 {[%emt 0:00:02]} ({Less strong is} 29... Rxa3 30. Bc1 Ra1 31. Nxe7+ Kh8 32. Nd5 $19 (32. Nxc6 $2 {is the wrong capture.} Rxd1+ 33. Kh2 Raxc1 $19)) 30. Ra1 {[%emt 0:00:01]} a5 {[%emt 0:00:04]} 31. Kh2 {[%emt 0:00:02]} f6 {[%emt 0:00:01]} 32. Be3 {[%emt 0:00:01]} Rdb8 {[%emt 0:00:02]} 33. Nd2 {[%emt 0:00:01] [#]} Bf8 $1 {[%emt 0:00:02] Threatens to win with ...Ra3.} 34. Rxa4 {[%emt 0:00:01]} R3b5 {[%emt 0:00:03]} 35. Rc4 {[%emt 0:00:05]} Nd8 {[%emt 0:00:03]} 36. Ra4 {[%emt 0:00:01]} Ne6 {[%emt 0:00:01] Inhibits Nc7.} 37. c4 {[%emt 0:00:01]} Nc5 {[%emt 0:00:01]} 38. Ra2 {[%emt 0:00:01] [#]} Nd3 $4 {[%emt 0:00:02][%mdl 8192]} 39. cxb5 $18 {[%emt 0:00:01]} Rxb5 {[%emt 0:00:02]} 40. Nc4 {[%emt 0:00:02]} Nb4 {[%emt 0:00:03]} 41. Rxa5 {[%emt 0:00:01]} Rxa5 {[%emt 0:00:02]} 42. Nxa5 {[%emt 0:00:01]} Nd3 {[%emt 0:00:02]} 43. Nc6 {[%emt 0:00:01]} Kf7 {[%emt 0:00:02]} 44. f3 {[%emt 0:00:01]} Nc5 {[%emt 0:00:02]} 45. Bxc5 {[%emt 0:00:02]} Bxc5 {[%emt 0:00:02]} 46. Kg3 {[%emt 0:00:02]} g6 $2 {[%emt 0:00:01]} (46... Ba3 47. Kf2 Bc5+ 48. Kf1 Ke6) 47. h4 {[%emt 0:00:01] Hoping for Nd8+. White is clearly winning.} h5 {[%emt 0:00:01]} (47... Bf8 $142 48. Kf2 Bc5+ 49. Ke2 Ba3) 48. Kh3 {[%emt 0:00:01]} Bd6 {[%emt 0:00:02]} 49. g4 {[%emt 0:00:00]} Bc5 {[%emt 0:00:01]} 50. Nd8+ {[%emt 0:00:02]} Ke8 {[%emt 0:00:02]} 51. Ne6 {[%emt 0:00:01] Weighted Error Value: White=0.29 (precise) /Black=0.74  Missed win:     	---       	Black=1      Mistake:       	White=4     	Black=2      Inaccurate:     	White=2     	Black=5      OK:         	White=17    	Black=13     Best:        	White=1     	Black=2} 1-0

[Event "Match Kovalenko-Kravtsiv Blitz 2025"]
[Site "Lviv"]
[Date "2025.03.20"]
[Round "4.1"]
[White "Kravtsiv, Martyn"]
[Black "Kovalenko, Igor"]
[Result "1/2-1/2"]
[Annotator "TA"]
[ECO "B23"]
[WhiteElo "2598"]
[BlackElo "2674"]
[PlyCount "88"]
[EventDate "2025.03.17"]
[EventType "match"]
[EventCountry "UKR"]
[SourceTitle "playchess.com"]
[Source "ChessBase"]
[SourceQuality "1"]
[TimeControl "180+2"]

{[%evp 10,88,30,-18,14,0,-7,-10,50,0,14,-12,-9,-7,-24,-22,-29,-27,-23,-12,-18,-16,0,0,0,0,0,0,21,25,31,-12,-10,-22,55,-20,-25,-30,-12,-12,99,-37,0,0,0,-41,0,-40,0,0,4,-35,0,-46,-41,-47,0,0,0,0,0,0,0,0,0,0,0,0,0,0,0,0,0,0,0,-296,-281,-281,-246,-1328,-125]} 1. e4 {[%emt 0:00:01]} c5 {[%emt 0:00:00]} 2. Nc3 {[%emt 0:00:01]} Nc6 {[%emt 0:00:01]} 3. Bb5 {[%emt 0:00:01]} Nd4 {[%emt 0:00:01]} 4. Nf3 {[%emt 0:00:01]} e6 {[%emt 0:00:01]} 5. O-O {[%emt 0:00:02]} Ne7 {[%emt 0:00:01]} 6. Re1 {[%emt 0:00:19]} (6. Nxd4 $142 cxd4 7. Ne2) 6... Ng6 {[%emt 0:00:13] B30: Sicilian: 2...Nc6 3 Bb5, lines without ...g6.} 7. Nxd4 {[%emt 0:00:02]} cxd4 {[%emt 0:00:01]} 8. Ne2 {[%emt 0:00:01][%cal Oa2a4]} Bc5 {[%emt 0:00:14]} (8... a6 $11 9. Bd3 Ne5) 9. d3 {[%emt 0:00:53]} O-O {[%emt 0:00:12] Not much happening anymore} 10. Ng3 $146 {[%emt 0:00:09]} (10. a3 a6 11. Ba4 d5 12. Ng3 b5 13. Bb3 dxe4 14. Nxe4 Be7 15. Qh5 Bb7 16. Bg5 {½-½ Mihelic,V (1912)-Cramling Bellon,A (2035) EU-chT (Women) 23rd 2021 (8.4)}) 10... d5 {[%emt 0:00:37]} 11. Ba4 {[%emt 0:00:13]} dxe4 {[%emt 0:00:30]} 12. Nxe4 {[%emt 0:00:02]} Be7 {[%emt 0:00:01]} 13. Qh5 {[%emt 0:00:04]} Bd7 {[%emt 0:00:09]} 14. Bb3 {[%emt 0:00:02]} Rc8 {[%emt 0:00:23]} 15. Bd2 {[%emt 0:00:11]} Qb6 {[%emt 0:00:21]} 16. a4 {[%emt 0:00:13]} Qc7 {[%emt 0:00:20]} 17. Ng5 {[%emt 0:00:23]} Bxg5 {[%emt 0:00:02] Successful Defense Black} 18. Qxg5 {[%emt 0:00:01]} Bc6 {[%emt 0:00:09]} 19. h4 {[%emt 0:00:01]} Ne7 {[%emt 0:00:12]} 20. Bf4 {[%emt 0:00:05]} Qd8 {[%emt 0:00:03]} 21. h5 {[%emt 0:00:22]} Nd5 {[%emt 0:00:02]} (21... h6 $11 22. Qg4 Kh7) 22. Qg3 {[%emt 0:00:05]} (22. h6 $14 Qxg5 23. Bxg5) 22... Nxf4 $11 {[%emt 0:00:02]} 23. Qxf4 {[%emt 0:00:01]} h6 {[%emt 0:00:01]} 24. Re5 {[%emt 0:00:03]} Qf6 {[%emt 0:00:02]} (24... Kh8 $11 {remains equal.}) 25. Qg3 {[%emt 0:00:02]} (25. Qxd4 $16 {[%cal Oa1e1]} Rfd8 26. Qe3 (26. Qxa7 $2 Qxe5 27. Qe3 Qxb2 $19)) 25... Rfd8 {[%emt 0:00:02]} 26. Rae1 {[%emt 0:00:01][%cal Re5e6] [#]} Kh8 {[%emt 0:00:01]} 27. a5 {[%emt 0:00:03]} a6 {[%emt 0:00:01]} 28. f3 {[%emt 0:00:04]} Rd7 {[%emt 0:00:01]} 29. Bc4 {[%emt 0:00:06]} Rcd8 {[%emt 0:00:05]} 30. Qg4 {[%emt 0:00:04]} Bd5 {[%emt 0:00:02]} 31. Bxd5 {[%emt 0:00:18]} (31. b3 $11) 31... Rxd5 $15 {[%emt 0:00:01]} 32. f4 {[%emt 0:00:01]} R8d6 {[%emt 0:00:06]} (32... Rxe5 $15 {feels stronger.} 33. fxe5 Qe7) 33. b4 $11 {[%emt 0:00:02]} Rd8 {[%emt 0:00:06]} 34. Qf3 {[%emt 0:00:03]} R8d6 {[%emt 0:00:02]} 35. Qg4 {[%emt 0:00:03]} Kg8 {[%emt 0:00:02]} 36. Qf3 {[%emt 0:00:02]} Qd8 {[%emt 0:00:02]} 37. f5 {[%emt 0:00:02][%cal Rf5e6]} Rxe5 {[%emt 0:00:03]} 38. Rxe5 {[%emt 0:00:01]} Rd5 {[%emt 0:00:03]} 39. Rxd5 {[%emt 0:00:07]} Qxd5 {[%emt 0:00:02]} 40. Qxd5 {[%emt 0:00:03]} exd5 {[%emt 0:00:01] KP-KP} 41. Kf2 {[%emt 0:00:01]} Kf8 {[%emt 0:00:01]} 42. Kf3 $2 {[%emt 0:00:00][%mdl 8192]} (42. Ke1 $11 {and White stays safe.}) 42... Ke7 $19 {[%emt 0:00:01] ...Kd6 would now be deadly.} 43. Kf4 {[%emt 0:00:05] [#] Hoping for Ke5.} f6 {[%emt 0:00:02]} 44. g4 $2 {[%emt 0:00:06]} (44. Kf3 Kd6 45. Ke2) 44... Kf8 $2 {Weighted Error Value: White=0.48/Black=0.20 (precise)   Loses game:     	White=1     	---        Missed win:     	---       	Black=1      Mistake:       	White=4     	Black=4      Inaccurate:     	White=6     	Black=4      OK:         	White=12    	Black=8      Best:        	---       	Black=4} (44... Kd6 $19 {has better winning chances.} 45. b5 axb5) 1/2-1/2

[Event "Match Kovalenko-Kravtsiv Blitz 2025"]
[Site "Lviv"]
[Date "2025.03.21"]
[Round "5.1"]
[White "Kovalenko, Igor"]
[Black "Kravtsiv, Martyn"]
[Result "0-1"]
[Annotator "TA"]
[ECO "E06"]
[WhiteElo "2674"]
[BlackElo "2598"]
[PlyCount "98"]
[EventDate "2025.03.17"]
[EventType "match"]
[EventCountry "UKR"]
[SourceTitle "playchess.com"]
[Source "ChessBase"]
[SourceQuality "1"]
[TimeControl "180+2"]

{[%evp 18,98,31,15,68,57,68,80,81,72,66,71,87,51,163,62,71,45,84,0,20,-40,-47,-41,-50,-40,-18,-30,-8,-126,-122,-137,-86,-119,-142,-158,-154,-126,-150,-58,0,0,244,8,12,-435,-470,-476,-491,-488,-462,-510,-505,-660,-518,-512,-497,-711,-683,-1023,-706,-818,-698,-697,0,-792,-529,-1967,-1927,-2147,-2154,-1598,0,-1788,-1783,-1386,-1364,-1406,-1325,-5173,-1527,-29988,-2453]} 1. c4 {[%emt 0:00:01]} e6 {[%emt 0:00:01]} 2. d4 {[%emt 0:00:00]} d5 {[%emt 0:00:00]} 3. Nf3 {[%emt 0:00:00]} Nf6 {[%emt 0:00:00]} 4. g3 {[%emt 0:00:01]} Be7 {[%emt 0:00:02]} 5. Bg2 {[%emt 0:00:01]} O-O {[%emt 0:00:02]} 6. O-O {[%emt 0:00:02]} c6 {[%emt 0:00:01][%cal Bc7c6,Bc6c5][%mdl 32]} 7. Nc3 {[%emt 0:00:01]} b6 {[%emt 0:00:07]} 8. b3 {[%emt 0:00:02]} Nbd7 {[%emt 0:00:18]} 9. Bb2 {[%emt 0:00:05]} Bb7 {[%emt 0:00:03] 9...Ba6 is more fashionable.} 10. Qc2 {[%emt 0:01:23]} dxc4 {[%emt 0:00:02] E08: Closed Catalan: Main Line: 7 Qc2.} (10... Qc7 $11) 11. bxc4 $14 {[%emt 0:00:01]} c5 {[%emt 0:00:01] [#]} 12. d5 {[%emt 0:00:24]} exd5 {[%emt 0:00:13] White is better.} 13. cxd5 {[%emt 0:00:00][%csl Od5] White has a strong passed pawn} Re8 $146 {[%emt 0:01:06]} (13... Bd6 14. Nh4 c4 15. Nf5 Bc5 16. Ne4 Nxe4 17. Qxe4 Nf6 18. Qxc4 Bxd5 19. Bxd5 Qxd5 {1-0 Bu,X (2713)-Xu,Z (2369) CHN-chT China 2017 (13.3)}) 14. Rad1 {[%emt 0:00:07]} Bd6 {[%emt 0:00:08]} 15. Nh4 {[%emt 0:00:13]} a6 {[%emt 0:00:19]} (15... Bf8 $14) 16. Nf5 {[%emt 0:00:08]} (16. f4 $18) 16... Bf8 $1 {[%emt 0:00:03]} 17. e4 {[%emt 0:00:05]} c4 {[%emt 0:00:06]} 18. Rfe1 {[%emt 0:00:11]} (18. f4 $16) 18... Ne5 {[%emt 0:00:11]} 19. d6 {[%emt 0:00:14]} (19. Ne2 $11) 19... Nd3 $15 {[%emt 0:00:13]} 20. Re2 {[%emt 0:00:27][%cal Oe4e5]} g6 {[%emt 0:00:14]} 21. Ne3 {[%emt 0:00:04]} b5 {[%emt 0:00:01]} (21... Bxd6 $2 22. Nxc4 Bb4 23. Rxd3 $18 (23. Qxd3 Qxd3 24. Rxd3 Re6 $18)) 22. Red2 {[%emt 0:00:08]} Bxd6 {[%emt 0:00:24][%cal Od6e5]} (22... Qxd6 23. e5 Qxe5 24. Bxb7 Nxb2 25. Qxb2 $18) (22... Re6 {is more complex.} 23. Ba1 Bxd6 24. Rxd3 cxd3 25. Qxd3 Be7) 23. Rxd3 {[%emt 0:00:01]} (23. Bf1 $1 $11 {was the only way to keep the balance.} Bxe4 (23... Nxe4 24. Nxe4 Bxe4 25. Ng4 $14) 24. Nxe4 Nxe4 25. Bxd3 cxd3 (25... Nxd2 26. Qxd2 cxd3 27. Ng4 $15) 26. Rxd3) 23... cxd3 $17 {[%emt 0:00:02]} 24. Rxd3 {[%emt 0:00:00][%cal Oe4e5]} Qe7 {[%emt 0:00:03]} (24... Bxe4 $2 25. Nxe4 Nxe4 26. Qd1 $18) (24... Qc7 $142 {[%cal Ob5b4] and ...b4! should not be overlooked} 25. Rxd6 Qxd6) 25. Rxd6 {[%emt 0:00:02]} Qxd6 {[%emt 0:00:01]} 26. e5 {[%emt 0:00:00]} Qb6 {[%emt 0:00:08]} (26... Qxe5 27. Bxb7 Rac8 28. Bxc8 (28. Bxa6 Rc5 $16) 28... Rxc8 29. Qd2 $18) 27. Bxb7 {[%emt 0:00:02]} Qxb7 {[%emt 0:00:01]} 28. exf6 {[%emt 0:00:01]} Rac8 {[%emt 0:00:01]} ({Black should try} 28... Rad8 $15 29. Ne2 Qe4 30. Qxe4 Rxe4) 29. Qd2 $11 {[%emt 0:00:02] Black must now prevent Ned5.} Re6 $2 {[%emt 0:00:03]} (29... Rcd8 $11 {and Black has nothing to worry.} 30. Ned5 Kh8) 30. Ncd5 $2 {[%emt 0:00:01]} ({White should try} 30. Ned5 $18 {Qh6 would kill now.} Kf8 31. Nf4 (31. Qh6+ Ke8 $18)) 30... Rd8 $1 {[%emt 0:00:02]} 31. Bd4 $2 {[%emt 0:00:06][%mdl 8192]} (31. Bc3 $11 {and White is okay.}) 31... Rxd5 $19 {[%emt 0:00:03]} 32. Nxd5 {[%emt 0:00:02]} Qxd5 {[%emt 0:00:01][%mdl 4096] Endgame KQR-KQB} 33. Qc3 {[%emt 0:00:02]} Re8 {[%emt 0:00:01][%cal Oh7h5] Dodges Qc8} ({Not} 33... Qxa2 34. Qc8+) 34. h4 {[%emt 0:00:03]} h5 {[%emt 0:00:01]} 35. Be3 {[%emt 0:00:02]} Qe5 {[%emt 0:00:01]} 36. Qc6 {[%emt 0:00:02]} Qe6 {[%emt 0:00:01]} 37. Qc3 {[%emt 0:00:01]} (37. Qc2 $142) 37... Qxa2 {[%emt 0:00:02]} 38. Kh2 {[%emt 0:00:01]} Qe6 {[%emt 0:00:02]} 39. Qd4 {[%emt 0:00:02]} Qe5 {[%emt 0:00:01]} 40. Qd7 {[%emt 0:00:02]} Qe6 {[%emt 0:00:02]} 41. Qd4 {[%emt 0:00:01] [#]} b4 $1 {[%emt 0:00:02]} 42. Bd2 {[%emt 0:00:01]} (42. Qxb4 Qc6) 42... a5 {[%emt 0:00:01]} 43. Bc1 {[%emt 0:00:02]} Qe5 {[%emt 0:00:02]} 44. Qd7 {[%emt 0:00:01]} Qe6 {[%emt 0:00:01]} 45. Qd4 {[%emt 0:00:00]} Qf5 {[%emt 0:00:02]} 46. Bf4 {[%emt 0:00:06]} Kh7 {[%emt 0:00:04]} 47. Be3 {[%emt 0:00:03]} Re6 {[%emt 0:00:02][%cal Ob4b3]} 48. Bg5 Re2 {[%emt 0:00:03]} (48... Re1 $142 49. Bd2 Rd1) 49. Kg1 {[%emt 0:00:02]} Qe4 {[%emt 0:00:02] Weighted Error Value: White=0.96/Black=0.65  Loses game:     	White=1     	Black=1      Missed win:     	White=1     	---        Mistake:       	White=5     	Black=3      Inaccurate:     	White=5     	Black=1      OK:         	White=8     	Black=6      Best:        	White=1     	Black=2      Strong:       	---       	Black=2      Brilliant:      	White=1     	---} (49... b3 $142 50. Qf4 Re1+ 51. Kg2 Qd5+ 52. Qf3 Rg1+ 53. Kxg1 Qxf3 54. Bc1 Qd1+ (54... Qxf6 $2 55. Bg5 $19) 55. Kh2 Qxc1 56. Kg2 b2 57. g4 b1=Q (57... b1=B {gets mated.} 58. Kf3 Qd1+ 59. Kf4 Qd4+ 60. Kf3 Qe4+ 61. Kg3 Qxg4+ 62. Kh2 Be4 63. f3 Qxf3 64. Kg1 Qg2#) (57... Qc6+ 58. Kh2 b1=Q 59. Kg3 Qg1+ 60. Kf4 Qxf2+ 61. Kg5 Qfxf6#) 58. gxh5 Qe4+ 59. f3 Qd2+ (59... Qxh4 $2 60. hxg6+ Kxg6 61. f4 Qch1#) 60. Kg3 Qef4+ 61. Kh3 Qxf3#) 0-1